Cogmind - Beta 10.2 @@@ ROGUE MODE // 2021.06.07 @ 20:36:37 Player: Plexion Result: Destroyed by Y-54 Guardian with Gatling Laser Performance ------------- Evolutions (3) 1500 Regions Visited (9) 1800 Robots Destroyed (122) 610 Value Destroyed (3368) 3368 Prototype IDs (33) 660 Alien Tech Used (0) 0 Bonus (637) 637 TOTAL SCORE: 8575 Bonus ------- High Alert Combat Kills 226 Follower Combat Kills 111 Aligned with FarCom 300 Cogmind --------- Core Integrity 0/700 Matter 212/300 Energy 100/100 System Corruption 9% Temperature Cool (6) Movement Walking (120) Location -7/Lower Caves Parts ------- > --- POWER (1) -------- (None) > --- PROPULSION (3) --- Carbon-fiber Leg Advanced Myomer Leg > --- UTILITY (6) ------ Large Storage Unit Advanced Signal Interpreter Experimental Targeting Computer > --- WEAPON (3) ------- Mini Grenade Launcher Makeshift Spear > --- INVENTORY (10) --- High-capacity Storage Unit Heavy Armor Plating Improved Light Armor Plating Advanced Component Analysis Suite AS-neutralizer No. 17b Peak State ------------ > --- POWER ------------ Light Nuclear Core > --- PROPULSION ------- Advanced Myomer Leg Advanced Myomer Leg > --- UTILITY ---------- Large Storage Unit Large Storage Unit Advanced Signal Interpreter 8R-AWN's Armor/EX > --- WEAPON ----------- Autogun Gauss Rifle Makeshift Spear > --- INVENTORY -------- High-capacity Storage Unit Experimental Targeting Computer Advanced Weapon Cycler Advanced Component Analysis Suite AS-neutralizer No. 17b 8R-AWN's Boregun Mini Grenade Launcher [Rating: 58] Favorites ----------- Power Nuclear Core Engine Light Ion Engine Power Core Nuclear Core Propulsion Light Treads Treads Light Treads Leg Improved Carbon-fiber Leg Utility Large Storage Unit Device Cloak of Protection Storage Large Storage Unit Processor Advanced Signal Interpreter Protection Medium Armor Plating Weapon Minigun Energy Gun Medium Laser Energy Cannon Guided Plasma Cannon Ballistic Gun Minigun Launcher Mini Grenade Launcher Special Weapon Plasma Cutter Piercing Weapon Makeshift Spear Build | -11 -10 -10 -9 -9 -9 -8 -8 -7 -7 ------- Run | Scr Mat Min Mat Min Exi Min Mat Fac Low Slots Evolved 6 | . . . 2 . . . 2 2 . Power . | . . . . . . . . . . Propulsion 1 | . . . . . . . 1 . . Utility 4 | . . . 2 . . . . 2 . Weapon 1 | . . . . . . . 1 . . Parts Attached 137 | 6 10 3 16 2 36 2 8 51 3 Power 11 | 1 1 . 2 . 3 . . 4 . Engine 2 | 1 1 . . . . . . . . Core 9 | . . . 2 . 3 . . 4 . Reactor . | . . . . . . . . . . Propulsion 29 | 2 4 . 3 . 2 1 6 10 1 Treads 14 | 2 4 . 3 . 2 1 2 . . Leg 15 | . . . . . . . 4 10 1 Wheel . | . . . . . . . . . . Hover . | . . . . . . . . . . Flight . | . . . . . . . . . . Utility 36 | 1 3 . 5 . 14 . . 13 . Device 13 | . 1 . 2 . 6 . . 4 . Storage 6 | 1 2 . . . 3 . . . . Processor 2 | . . . . . . . . 2 . Hackware . | . . . . . . . . . . Protection 15 | . . . 3 . 5 . . 7 . Artifact . | . . . . . . . . . . Weapon 61 | 2 2 3 6 2 17 1 2 24 2 Energy Gun 8 | 1 2 3 . . 1 . . 1 . Energy Cannon 3 | . . . . . 3 . . . . Ballistic Gun 33 | 1 . . 5 1 9 . 2 15 . Ballistic Cannon . | . . . . . . . . . . Launcher 10 | . . . 1 1 1 1 . 4 2 Special Weapon 1 | . . . . . 1 . . . . Impact Weapon . | . . . . . . . . . . Slashing Weapon . | . . . . . . . . . . Piercing Weapon 6 | . . . . . 2 . . 4 . Special Melee Weapon . | . . . . . . . . . . Unidentified Prototypes 10 | . . . 2 . 6 . . 2 . Parts Lost 56 | . 3 2 3 . 11 1 1 29 6 Power 8 | . 1 . . . 2 . . 4 1 Propulsion 14 | . . . 1 . 2 1 1 7 2 Utility 16 | . . . 2 . 5 . . 6 3 Weapon 18 | . 2 2 . . 2 . . 12 . Highest Loss Streak 11 | . 3 1 1 . 11 1 1 10 4 Average Slot Usage (%) 93 | . 97 99 93 100 93 100 98 85 72 Engine 3 | . 13 14 . . . . . . . Core 6 | . . . 10 11 10 11 9 5 1 Treads 18 | . 28 28 21 22 21 22 11 . . Leg 4 | . . . . . . . 13 19 16 Device 2 | . 4 . 1 . 4 . . 3 1 Storage 23 | . 22 28 22 22 26 33 27 19 14 Processor 1 | . . . . . . . . 8 15 Protection 8 | . . . 14 22 11 11 9 8 6 Energy Gun 6 | . 23 27 . . . . . . . Ballistic Gun 13 | . 3 . 21 21 15 11 27 11 1 Naked Turns . | . . . . . . . . . . Heaviest Build 106 | 11 54 55 75 75 95 80 85 106 50 Greatest Support 75 | 40 40 40 40 40 40 40 60 75 75 Greatest Overweight (x) 9 | . 1 1 3 1 2 1 4 9 1 Average Overweight (x) . | . . 1 1 1 1 1 1 . . Largest Inventory Capacity 24 | 6 18 18 18 18 24 24 24 24 16 Average Capacity 18 | 5 14 18 18 18 20 24 24 20 15 Most Carried 24 | 2 11 12 18 18 24 20 24 22 6 Average Carried 14 | 1 6 11 16 17 18 19 21 13 5 Final Capacity 24 | 6 18 18 18 18 24 24 24 16 10 Final Carried 23 | 2 10 11 18 18 20 19 23 6 6 Class Distribution -------------------- 62% | Mutant 15% | Scavenger-Mutant 11% | Hauler-Tank 9% | Hauler-Mutant Dominant Class ---------------- Mutant | -10/Materials Mutant | -10/Mines Mutant | -9/Materials Mutant | -9/Mines Mutant | -9/Exiles Hauler-Mutant | -8/Mines Hauler-Tank | -8/Materials Scavenger-Mutant | -7/Factory Mutant | -7/Lower Caves Resources | -11 -10 -10 -9 -9 -9 -8 -8 -7 -7 ----------- Run | Scr Mat Min Mat Min Exi Min Mat Fac Low Matter Collected 3640 | 218 212 50 597 7 1035 45 424 930 122 Remotely . | . . . . . . . . . . Salvage Created 4448 | . 535 268 939 27 474 9 679 1461 56 Parts 297 | . 33 18 58 3 60 1 33 87 4 Haulers Intercepted 5 | . 1 . 4 . . . . . . Recyclers Shooed 6 | . 1 . 3 . . . . 2 . Parts Field Recycled . | . . . . . . . . . . Retrieved Matter . | . . . . . . . . . . Parts Self-Destructed 6 | . . . . . . . . . 6 Prevented 1 | . . . . . . . . . 1 Kills | -11 -10 -10 -9 -9 -9 -8 -8 -7 -7 ------- Run | Scr Mat Min Mat Min Exi Min Mat Fac Low Combat Hostiles Destroyed 93 | . 11 5 21 4 6 2 11 30 3 Melee 8 | . . . . . 1 . . 7 . Guns 59 | . 11 5 19 . 1 . 11 12 . Cannons 1 | . . . . . 1 . . . . AOE 24 | . . . 2 4 3 2 . 10 3 Classes Destroyed 17 | . 7 1 2 . 3 . . 4 . Worker 4 | . 1 1 1 . . . 1 . . Builder 6 | . . . . . . . . 6 . Tunneler 2 | . . 2 . . . . . . . Hauler 5 | . 1 . 4 . . . . . . Recycler 3 | . 1 . . . . . 1 1 . Operator 1 | . 1 . . . . . . . . Turret 1 | . . . . . 1 . . . . Watcher 2 | . 1 . 1 . . . . . . Swarmer 24 | . 5 . 8 4 . 2 . 5 . Grunt 46 | . 6 5 8 . . . 7 18 2 Brawler 1 | . . . . . . . . 1 . Duelist 4 | . . . 1 . . . . 2 1 Sentry 10 | . . . 4 . . . 4 2 . Hunter 1 | . . . . . . . . 1 . Programmer 1 | . . . . . . . . 1 . Zionite 8 | . . . . . 8 . . . . Assembled 5 | . . . . . 5 . . . . Best Kill Streak 11 | . 8 2 6 4 8 2 3 11 3 Combat Bots Only 7 | . 7 2 6 4 4 2 3 6 3 Max Kills in Single Turn 3 | . 1 2 1 3 2 2 1 3 1 Gunslinging . | . . . . . . . . . . Exploded 3 | . . . 1 3 2 2 . 2 1 Melee 1 | . . . . . 1 . . 1 . Uniques/NPCs Destroyed 4 | . . . . . 4 . . . . 8R-AWN (-9/Exiles) EX-DEC (-9/Exiles) EX-HEX (-9/Exiles) EX-BIN (-9/Exiles) Combat | -11 -10 -10 -9 -9 -9 -8 -8 -7 -7 -------- Run | Scr Mat Min Mat Min Exi Min Mat Fac Low Damage Taken 8732 | . 574 196 516 38 1593 64 755 4325 671 Core 1062 | . 85 11 23 . 155 30 56 619 83 Absorbed by Shields . | . . . . . . . . . . Core Remaining (%) 74 | 100 . 61 . . . 48 89 . . Volleys Fired 353 | . 51 20 60 2 94 1 37 73 15 Largest 3 | . 2 2 2 1 2 1 3 3 1 Hottest 120 | . 90 90 50 30 120 30 71 96 30 Shots Fired 624 | . 91 38 118 2 123 1 111 126 14 Gun 553 | . 91 38 116 . 94 . 111 103 . Cannon 22 | . . . . . 22 . . . . Launcher 45 | . . . 2 2 3 1 . 23 14 Special 4 | . . . . . 4 . . . . Kinetic 442 | . 35 . 116 . 78 . 111 102 . Thermal 102 | . 56 20 . . 26 . . . . Explosive 31 | . . . 2 2 3 1 . 9 14 Electromagnetic 49 | . . 18 . . 16 . . 15 . Robot Hit Streak 21 | . 15 6 10 . 21 . 20 21 4 Robot Miss Streak 5 | . 3 2 5 2 3 . 3 3 2 Penetration Max 1 | . . . . . 1 . . 1 . Secondary Targets 5 | . 2 1 . . . . 1 1 . Max Gunslinging Chain 1 | . 1 1 . . . . 1 1 . Shots Hit Robots 451 | . 73 26 64 . 94 . 76 112 6 Core Hits 220 | . 27 12 32 4 34 2 27 73 9 Critical Hits 18 | . . . . . 9 . 3 6 . Critical Kills 6 | . . . . . 3 . 1 2 . Critical Parts Destroyed 9 | . . . . . 3 . 2 4 . Melee Attacks 59 | . . . . . 26 . . 31 2 Impact . | . . . . . . . . . . Slashing . | . . . . . . . . . . Piercing 59 | . . . . . 26 . . 31 2 Sneak Attacks 1 | . . . . . . . . 1 . Combat Hostiles . | . . . . . . . . . . Follow-up Attacks . | . . . . . . . . . . Damage Inflicted 10499 | . 867 417 1380 226 2254 89 1122 3331 813 Guns 5732 | . 867 363 1214 . 949 . 1122 1217 . Cannons 788 | . . . . . 788 . . . . Explosions 3166 | . . 54 144 226 238 89 . 1602 813 Melee 787 | . . . . . 276 . . 511 . Ramming 23 | . . . 22 . . . . 1 . Kinetic 4762 | . 286 . 1214 . 935 . 1122 1205 . Thermal 1828 | . 581 224 . . 791 . . 232 . Explosive 2418 | . . . 144 226 238 89 . 908 813 Electromagnetic 681 | . . 193 . . 14 . . 474 . Impact . | . . . . . . . . . . Slashing . | . . . . . . . . . . Piercing 787 | . . . . . 276 . . 511 . Highest Corruption 9 | . . . . . . . . 9 9 Average Corruption 7 | . . . . . . . . 7 9 Corruption Purged . | . . . . . . . . . . Effects 33 | . . . . . . . . 20 13 Message Errors 4 | . . . . . . . . 3 1 Matter Fused 6 | . . . . . . . . 4 2 Heat Flow Errors 5 | . . . . . . . . 1 4 Energy Discharges 4 | . . . . . . . . 2 2 Parts Rejected 1 | . . . . . . . . . 1 Data Loss (minor) 3 | . . . . . . . . 2 1 Targeting Errors 8 | . . . . . . . . 7 1 Weapon Failures 2 | . . . . . . . . 1 1 Overload Shots . | . . . . . . . . . . Overflow Damage 200 | . . . . . 86 . . 44 70 Projectiles 74 | . . . . . 74 . . . . Explosions 126 | . . . . . 12 . . 44 70 Melee . | . . . . . . . . . . Knockbacks 1 | . . . 1 . . . . . . Impact 1 | . . . 1 . . . . . . Kinetic . | . . . . . . . . . . Secondary . | . . . . . . . . . . Self-Inflicted Damage 561 | . . . . . . 49 . 308 204 Shots 24 | . . . . . . 1 . 17 6 Rammed 2 | . . . 1 . . . . 1 . Targets Rammed 2 | . . . 1 . . . . 1 . Kicked . | . . . . . . . . . . Crushed . | . . . . . . . . . . Highest Temperature 228 | . 132 144 77 . 228 . 150 132 217 Average Temperature 55 | . 48 46 19 . 73 . 50 65 83 Received Heat Transfer 1947 | . 141 102 102 . . . 342 1149 111 Effects 1 | . . . . . 1 . . . . Interference 1 | . . . . . 1 . . . . Siege Activations . | . . . . . . . . . . Robots Corrupted 1 | . . . . . . . . 1 . Combat Hostiles 1 | . . . . . . . . 1 . Parts Fried 1 | . . . . . . . . 1 . Impact Corruptions . | . . . . . . . . . . Robots Melted 1 | . . . . . 1 . . . . Combat Hostiles . | . . . . . . . . . . Parts Melted 14 | . . . 1 . 12 . . 1 . Heat Transferred 4133 | . 1678 498 . . 1607 . . 350 . Parts Sabotaged . | . . . . . . . . . . Parts Stolen . | . . . . . . . . . . Parts Stripped . | . . . . . . . . . . Power Chain Reactions 6 | . . 1 . . . . . 5 . Missiles Intercepted . | . . . . . . . . . . Alert | -11 -10 -10 -9 -9 -9 -8 -8 -7 -7 ------- Run | Scr Mat Min Mat Min Exi Min Mat Fac Low Peak Influence 624 | . 329 115 624 306 . 52 225 556 . Initial 201 | . . 19 19 201 . . 20 102 . Average 212 | . 118 29 431 233 . 51 96 279 . Maximum Alert Level 2 | . 1 . 2 1 . . 1 2 . Low Security (%) 57 | 100 91 100 10 3 . 100 84 42 . Level 1 15 | . 8 . 6 96 . . 15 23 . Level 2 26 | . . . 82 . . . . 33 . Level 3 . | . . . . . . . . . . Level 4 . | . . . . . . . . . . Level 5 . | . . . . . . . . . . High Security . | . . . . . . . . . . Max Security . | . . . . . . . . . . Squads Dispatched 16 | . 2 . 2 . . . 1 11 . Investigation 3 | . . . 1 . . . . 2 . Extermination 1 | . . . . . . . . 1 . Reinforcement 8 | . 2 . 1 . . . 1 4 . Assault . | . . . . . . . . . . Garrison 4 | . . . . . . . . 4 . Intercept . | . . . . . . . . . . Construction Impeded 3 | . . . . . . . . 3 . Haulers Reinforced . | . . . . . . . . . . Stealth | -11 -10 -10 -9 -9 -9 -8 -8 -7 -7 --------- Run | Scr Mat Min Mat Min Exi Min Mat Fac Low Distress Signals 7 | . 1 1 2 . . . 2 1 . Communications Jammed . | . . . . . . . . . . Distress Signals . | . . . . . . . . . . Times Spotted 180 | . 23 10 44 4 24 3 17 47 8 Peak Tracking Total 9 | . 4 3 8 4 9 3 3 7 4 Tactical Retreats 21 | . . 3 3 . 3 . 1 7 4 Traps | -11 -10 -10 -9 -9 -9 -8 -8 -7 -7 ------- Run | Scr Mat Min Mat Min Exi Min Mat Fac Low Traps Triggered 5 | . . . 1 . . . . 4 . Indirectly . | . . . . . . . . . . Trap Hack Attempts . | . . . . . . . . . . Triggered . | . . . . . . . . . . Disarmed . | . . . . . . . . . . Reprogrammed . | . . . . . . . . . . Reused . | . . . . . . . . . . Traps Extracted . | . . . . . . . . . . Installed . | . . . . . . . . . . Triggered 3 | . . . . . . . . . 3 Exploded 3 | . . . . . 3 . . . . Machines | -11 -10 -10 -9 -9 -9 -8 -8 -7 -7 ---------- Run | Scr Mat Min Mat Min Exi Min Mat Fac Low Machines Disabled 18 | . . . 4 . 11 . . 3 . Max in Single Turn 2 | . . . 1 . 1 . . 2 . Machines Sabotaged . | . . . . . . . . . . Garrisons Compromised . | . . . . . . . . . . Overloaded Fab Kills . | . . . . . . . . . . Fab Network Shutdowns . | . . . . . . . . . . Hacking | -11 -10 -10 -9 -9 -9 -8 -8 -7 -7 --------- Run | Scr Mat Min Mat Min Exi Min Mat Fac Low Machines Accessed 9 | . 2 . 1 . 2 . 1 3 . Terminals 5 | . 2 . 1 . . . 1 1 . Fabricators . | . . . . . . . . . . Repair Stations . | . . . . . . . . . . Recycling Units . | . . . . . . . . . . Scanalyzers 1 | . . . . . . . . 1 . Garrison Access 1 | . . . . . . . . 1 . Total Hacks 21 | . 5 . 4 . 2 . 2 8 . Successful 10 | . 3 . 3 . 2 . 2 . . Failed 11 | . 2 . 1 . . . . 8 . Catastrophic 3 | . . . . . . . . 3 . Database Lockouts . | . . . . . . . . . . Manual 11 | . 4 . 4 . 1 . 2 . . Terminals 15 | . 5 . 4 . . . 2 4 . Fabricators . | . . . . . . . . . . Repair Stations . | . . . . . . . . . . Recycling Units . | . . . . . . . . . . Scanalyzers 2 | . . . . . . . . 2 . Garrison Access 2 | . . . . . . . . 2 . Terminal Hacks 6 | . 2 . 1 . 2 . 1 . . Record 1 | . . . . . 1 . . . . Robot Analysis 2 | . 2 . . . . . . . . Zone Layout 2 | . . . 1 . . . 1 . . EX-Prototype ID Bank 1 | . . . . . 1 . . . . Fabricator Hacks . | . . . . . . . . . . Repair Station Hacks . | . . . . . . . . . . Recycling Unit Hacks . | . . . . . . . . . . Scanalyzer . | . . . . . . . . . . Garrison Access Hacks . | . . . . . . . . . . Unauthorized Hacks 4 | . 1 . 2 . . . 1 . . Terminals 4 | . 1 . 2 . . . 1 . . Track 3 | . 1 . 1 . . . 1 . . Operators 1 | . . . 1 . . . . . . Fabricators . | . . . . . . . . . . Repair Stations . | . . . . . . . . . . Recycling Units . | . . . . . . . . . . Scanalyzers . | . . . . . . . . . . Garrison Access . | . . . . . . . . . . Data Cores Recovered . | . . . . . . . . . . Used . | . . . . . . . . . . Hacking Detections 7 | . 2 . 1 . . . 1 3 . Full Trace Events 2 | . . . . . . . . 2 . Feedback Events . | . . . . . . . . . . Feedback Blocked . | . . . . . . . . . . Robot Schematics Acquired . | . . . . . . . . . . Robots Built . | . . . . . . . . . . Matter . | . . . . . . . . . . Time . | . . . . . . . . . . Total Robot Build Rating . | . . . . . . . . . . Part Schematics Acquired . | . . . . . . . . . . Parts Built . | . . . . . . . . . . Matter . | . . . . . . . . . . Time . | . . . . . . . . . . Total Part Build Rating . | . . . . . . . . . . Parts Repaired . | . . . . . . . . . . Time . | . . . . . . . . . . Parts Recycled . | . . . . . . . . . . Recycled Matter . | . . . . . . . . . . Retrieved Matter . | . . . . . . . . . . Retrieved Components . | . . . . . . . . . . Parts Scanalyzed . | . . . . . . . . . . Part Schematics Acquired . | . . . . . . . . . . Parts Damaged . | . . . . . . . . . . Bothacking | -11 -10 -10 -9 -9 -9 -8 -8 -7 -7 ------------ Run | Scr Mat Min Mat Min Exi Min Mat Fac Low Used RIF Installer . | . . . . . . . . . . Robots Hacked . | . . . . . . . . . . Non-combat . | . . . . . . . . . . Combat . | . . . . . . . . . . Robot Hacks Applied . | . . . . . . . . . . Relay Couplers Released . | . . . . . . . . . . Robots Rewired . | . . . . . . . . . . Allies Hacked . | . . . . . . . . . . Hacks Repelled . | . . . . . . . . . . Allies | -11 -10 -10 -9 -9 -9 -8 -8 -7 -7 -------- Run | Scr Mat Min Mat Min Exi Min Mat Fac Low Total Allies 1 | . . 1 . . . . . . . Largest Group 1 | . . 1 1 . . . . . . Highest-Rated Group 31 | . . 31 31 . . . . . . Highest-Rated Ally 31 | . . 31 31 . . . . . . Total Orders . | . . . . . . . . . . Ally Attacks 34 | . . . 34 . . . . . . Total Damage 560 | . . . 560 . . . . . . Kills 9 | . . . 9 . . . . . . Allies Corrupted . | . . . . . . . . . . Allies Melted . | . . . . . . . . . . Intel | -11 -10 -10 -9 -9 -9 -8 -8 -7 -7 ------- Run | Scr Mat Min Mat Min Exi Min Mat Fac Low Robot Analysis Total 2 | . 2 . . . . . . . . Derelict Logs Recovered 2 | . . 1 . . . . . . 1 Drone Launches . | . . . . . . . . . . Drone Recoveries . | . . . . . . . . . . Exploration | -11 -10 -10 -9 -9 -9 -8 -8 -7 -7 ------------- Run | Scr Mat Min Mat Min Exi Min Mat Fac Low Turns Passed 8450 | 81 1179 872 1488 416 2053 277 635 1101 348 Spaces Moved 3867 | 47 581 222 713 227 891 152 289 487 258 Core 4 | 4 . . . . . . . . . Treads 2983 | 43 581 222 713 227 891 152 154 . . Legs 880 | . . . . . . . 135 487 258 Wheels . | . . . . . . . . . . Hover . | . . . . . . . . . . Flight . | . . . . . . . . . . Fastest Speed 50 | 50 160 180 180 180 180 180 150 120 120 Average Speed 171 | 150 173 180 180 180 187 180 168 146 120 Slowest Speed 390 | 160 180 180 220 180 200 180 240 390 150 Overloaded Moves . | . . . . . . . . . . Propulsion Burnouts . | . . . . . . . . . . Robots Hopped . | . . . . . . . . . . Cave-ins Triggered . | . . . . . . . . . . Exploration Rate (%) 46 | 4 91 57 59 52 90 37 29 15 34 Regions Visited 9 Branch Regions 5 Pre-discovered Areas 1 | . . . . . 1 . . . . Known Exits Taken 1 | . . . . . . . . 1 . Unknown Exits Taken 8 | 1 1 1 1 1 1 1 1 . . Scrap Searched 4 | . . 1 . . . . . . 3 Spaces Dug 1 | . . . . . . . . 1 . Terrain Destroyed 155 | . . 8 18 17 22 12 . 35 43 Melee 1 | . . . . . . . . 1 . Projectile 5 | . . . . . 3 . . 2 . AOE 149 | . . 8 18 17 19 12 . 32 43 Terrain Rammed . | . . . . . . . . . . Walls Destroyed . | . . . . . . . . . . Machines Disabled . | . . . . . . . . . . Actions | -11 -10 -10 -9 -9 -9 -8 -8 -7 -7 --------- Run | Scr Mat Min Mat Min Exi Min Mat Fac Low Total 5067 | 54 659 657 822 232 1130 154 362 718 279 Wait 549 | . 10 409 9 . 35 . 17 69 . Move 3858 | 46 580 221 712 226 890 151 288 486 258 Hop . | . . . . . . . . . . Pick Up 55 | 2 5 3 11 1 22 . 6 4 1 Fast Attach 50 | 6 4 . 8 . 10 . 4 17 1 Attach 48 | . 1 3 2 . 12 1 2 25 2 Detach 17 | . 1 1 3 . 7 . 2 3 . Swap 39 | . 5 . 6 2 14 1 2 9 . Drop 37 | . 2 . 10 1 20 . 4 . . Fire 353 | . 51 20 60 2 94 1 37 73 15 Melee 59 | . . . . . 26 . . 31 2 Ram 1 | . . . . . . . . 1 . Kick . | . . . . . . . . . . Crush 1 | . . . 1 . . . . . . Escape Stasis . | . . . . . . . . . . Rewire . | . . . . . . . . . . Trap . | . . . . . . . . . . Miscellaneous . | . . . . . . . . . . Route ------- -11/Scrapyard -10/Materials (discovered 5 exits: *Mat x3 / [*Min x2]) -10/Mines -9/Materials (discovered 3 exits: *Mat x2 / [*Min]) -9/Mines -9/Exiles -8/Mines -8/Materials (discovered 2 exits: *Fac / [*Sto]) -7/Factory (discovered 2 exits: *Fac / *Low) -7/Lower Caves History --------- Turn | Location | Event 3 | -11/Scrapyard | Discovered new exit (range 15) 82 | -11/Scrapyard | Entered Materials 182 | -10/Materials | Discovered new exit (range 14) 230 | -10/Materials | Discovered new exit (range 6) 261 | -10/Materials | Discovered new exit (range 15) 314 | -10/Materials | Build established: Mutant 427 | -10/Materials | Lost 3 parts (1p2w) 447 | -10/Materials | Destroyed 7 combat bots 871 | -10/Materials | Build established: Scavenger-Mutant 1070 | -10/Materials | Discovered new exit (range 16) 1175 | -10/Materials | Discovered new exit (range 7) 1193 | -10/Materials | Build established: Mutant 1261 | -10/Materials | Entered Mines 1296 | -10/Mines | Found a damaged Exp. Sensor Array with a note attached 1300 | -10/Mines | Found Prototype Device 1386 | -10/Mines | Excavation squad dispatched 1386 | -10/Mines | A large section of the Mines collapsed 1636 | -10/Mines | Excavation squad dispatched 1886 | -10/Mines | Excavation squad dispatched 1936 | -10/Mines | Learned Materials stockpile data 2104 | -10/Mines | Discovered new exit (range 13) 2123 | -10/Mines | Received a Mining Laser from a helpful Derelict 2133 | -10/Mines | Entered Materials 2133 | -9/Materials | Accompanied by 1 ally 2133 | -9/Materials | Evolved 2 slots: Utility x2 2152 | -9/Materials | Identified Exp. Sensor Array 2301 | -9/Materials | Discovered new exit (range 7) 2746 | -9/Materials | Discovered new exit (range 8) 3307 | -9/Materials | Discovered new exit (range 10) 3621 | -9/Materials | Entered Mines 3628 | -9/Mines | Received a Rocket Launcher from a helpful Derelict 3666 | -9/Mines | A weapon hastily lodged in a ceiling crevice suddenly fell to the ground 4028 | -9/Mines | Deemed a non-threat by the Exiles lab entrance 4030 | -9/Mines | Discovered new exit (range 5) 4037 | -9/Mines | Entered Exiles 4082 | -9/Exiles | Met 8R-AWN 4113 | -9/Exiles | Met EX-HEX 4190 | -9/Exiles | Met EX-DEC 4225 | -9/Exiles | Learned location of Zion (-7) 4354 | -9/Exiles | Met EX-BIN 4379 | -9/Exiles | Aligned with FarCom system 4381 | -9/Exiles | Given EX-Vault access code 4423 | -9/Exiles | Opened EX-Vault 4440 | -9/Exiles | Found Gui. Plasma Cannon 4443 | -9/Exiles | Found Cloak of Protection 4458 | -9/Exiles | Found AWS/Autocannon 4499 | -9/Exiles | Warned to stay clear of 0b10 Research branches 4629 | -9/Exiles | Discovered new exit (range 14) 5163 | -9/Exiles | Attacked by the Exiles 5412 | -9/Exiles | Lost 11 parts (2p2n5u2w) 5415 | -9/Exiles | Destroyed 8R-AWN 5424 | -9/Exiles | Found Prototype Ballistic Gun 5424 | -9/Exiles | Identified 8R-AWN's Boregun 5431 | -9/Exiles | Found 8R-AWN's Boregun 5434 | -9/Exiles | Found Prototype Device 5434 | -9/Exiles | Identified AS-neutralizer No. 17b 5453 | -9/Exiles | Found Prototype Processor 5464 | -9/Exiles | Found Prototype Protection 5464 | -9/Exiles | Identified 8R-AWN's Armor/EX 5686 | -9/Exiles | Destroyed EX-DEC 5717 | -9/Exiles | Destroyed EX-HEX 5819 | -9/Exiles | Destroyed EX-BIN 6009 | -9/Exiles | Build established: Scavenger-Mutant 6090 | -9/Exiles | Entered Mines 6093 | -8/Mines | Core integrity fell below 50% 6196 | -8/Mines | Discovered new exit (range 8) 6362 | -8/Mines | Build established: Hauler-Mutant 6367 | -8/Mines | Entered Materials 6367 | -8/Materials | Evolved 2 slots: Propulsion x1, Weapon x1 6662 | -8/Materials | Build established: Hauler-Tank 6860 | -8/Materials | Discovered new exit (range 7) 6976 | -8/Materials | Discovered new exit (range 16) 7002 | -8/Materials | Entered Factory 7002 | -7/Factory | Evolved 2 slots: Utility x2 7187 | -7/Factory | Lost 4 parts (1p1n1u1w) 7400 | -7/Factory | Garrison activated, responded to threat 7479 | -7/Factory | Lost 10 parts (1p2n2u5w) 7636 | -7/Factory | Core integrity fell below 50% 7700 | -7/Factory | Lost 10 parts (1p4n2u3w) 7808 | -7/Factory | Garrison activated, responded to threat 7819 | -7/Factory | Discovered new exit (range 16) 7831 | -7/Factory | Identified Exp. Targeting Computer 7857 | -7/Factory | Core integrity fell below 20% 7884 | -7/Factory | Lost 4 parts (1p1u2w) 7948 | -7/Factory | Identified exit to Factory 8088 | -7/Factory | Discovered new exit (range 11) 8099 | -7/Factory | Identified exit to Lower Caves 8103 | -7/Factory | Entered Lower Caves 8113 | -7/Lower Caves | Learned Factory stockpile data 8132 | -7/Lower Caves | Build established: Scavenger-Mutant 8213 | -7/Lower Caves | Lost 4 parts (1p2n1u) 8434 | -7/Lower Caves | Attracted the attention of an 0b10 checkpoint 8451 | -7/Lower Caves | Destroyed by Y-54 Guardian with Gatling Laser Last Messages --------------- 08229_ Found Shotgun. 08229_ Found Hvy. Armor Plating. 08229_ Found 11 Matter. 08230_ Acquired 11 matter. 08231_ Acquired Hvy. Armor Plating. 08261_ System corrupted: Matter fused (-8). 08281_ Destroyed Lgt. Nuclear Core. 08281_ Destroyed Aluminum Leg. 08281_ Destroyed Particle Gun. 08284_ G1498E0DF%4 UFF>HBMO=# 08288_ Acquired 11 matter. 08310_ System corrupted: Heat flow error (+247). 08357_ System corrupted: Heat flow error (+115). 08395_ System corrupted: Heat flow error (+179). 08422_ System corrupted: Component data lost. 08434_ Y-54 Guardian: "INTERCEPTING UNREGISTERED DERELICT." 08439_ System corrupted: Mni. Grenade Launcher rejected. 08440_ Acquired Mni. Grenade Launcher. 08440_ Imp. Medium Armor Plating destroyed. 08440_ Lrg. Storage Unit destroyed. Map ----- +----------------------------------------------------+ | ????????????????????????????# #?????????# #?## | | ???????????????????????###??# #?????????# ##?## | | ??????????????????????## #??# ########### #### | | ?????????????????????## #### | | ?????????????????????# ## | | ?????????????????????# ## ### ##### | | ????????????????????## ## #?## #???? | | ????????????????????# ## ## #??## #??? | | ????????????????????## ## ???## #? | | ?????????????????????# # ## #???## | | ???????????????????### ### #### ##????# | | ???????????????????# #####?? ##????? # | | ???????????????????# ##?????? ##?????? # | | ??????????????????## #???????# #??????? | | ?????????????????## #???????# ??????? | | ?????????????????# #???????# #?????? | | ?????????????????# ##?????? #?????? ## | | ?????????????????## #?????? #?????? ##?# | | ?????????????????## ##?##?? ?????? ##??? | | ?????????????????# ## ##?# ???????? #????? | | ?????????????????# #????????????????????? | | ?????????????????# #????????????????????? | | ?????????????????# ##????????????????????? | | ?????????????????#### ##?????????????????????? | | ???????????????????## ## #??????????????????? | | ???????????????????# @ #??????????????????? | | ???????????????????# ### #???????????? | | ???????????????????#####?? #?????????? | | ??????????????????????????? #?????????? | | ??????????????????????????? Y #?????????? | | ???????????????????????????? ??????????? | | ???????????????????????????? ??????????? | | ????????????????????????????? ??????????? | | ????????????????????????????? ???????????? | | ?????????????????????????????? ##???????????? | | ?????????????????????????????? # ##????????????? | | ??????????????????????????????? ###?????????????? | | ??????????????????????????????? #???????????????? | | ???????????????????????????????? ????????????????? | | ?????????????????????????????????????????????????? | | ?????????????????????????????????????????????????? | | ?????????????????????????????????????????????????? | | ?????????????????????????????????????????????????? | | ?????????????????????????????????????????????????? | | ?????????????????????????????????????????????????? | | ?????????????????????????????????????????????????? | | ?????????????????????????????????????????????????? | | ?????????????????????????????????????????????????? | | ?????????????????????????????????????????????????? | | ?????????????????????????????????????????????????? | +----------------------------------------------------+ Best States ------------- Heat Dissipation 60 Energy Generation 19 Energy Capacity 310 Matter Stores 300 Matter Capacity 300 Sight Range 16 Robot Scan Range 30 Terrain Scan Density 10 Cloak Strength 5 Armor Coverage 1000 Resistance: EX 90 Weapon Cycling 25 Evasion (%) 40 Targeting Accuracy 12 Recoil Reduction 3 Item Schematics ----------------- None Robot Schematics ------------------ None Fabricated ------------ Nothing Alien Tech Used ----------------- None Achievements -------------- None Challenges ------------ None Game ------ Seed RecoilCatalystInsulator Manual? 0 Play Time 00:45:05 Cumulative 188.6 hours Start 2021.06.07 @ 19:51:38 End 2021.06.07 @ 20:36:37 Sessions 1 Manual Loads 0 Difficulty Rogue Special Mode None Game No. 238 Rogue 151 Adventurer 87 Explorer 0 Win Type - Total 4 Types 3/0/0/1/0/0/0/0/0 Lore% 67 Gallery% 74 Achievement% 61 Wizard Run 0 Options --------- ASCII 0 Keyboard 1 Movement Numpad Keybinds 0 Fullscreen 1 Font 18/Smallcaps Map View 76x50 Tactical HUD 1 Map Filters NONE Filters NONE Steam 1 RUN: b1f55c52-8088-4dbf-a912-2296570b131e